bitfinex/quotes_SOLUSD_20250410
["timestamp","ask_amount","ask_price","bid_price","bid_amount"]
[1744300240259,51.73486871,109.85,109.81,28.040372]
[1744300240863,26.0,109.87,109.81,28.040372]
[1744300241066,51.73486871,109.84,109.8,9.1074]
[1744300241261,35.1021,109.87,109.79,9.1079]
[1744300241470,35.1011,109.88,109.79,79.49241757]
[1744300241643,51.73486871,109.83,109.79,9.39222314]
[1744300241849,51.73486871,109.8,109.76,9.1107]
[1744300242170,51.73486871,109.77,109.75,81.2]
[1744300242350,51.73486871,109.77,109.75,9.1114]
[1744300242551,51.73486871,109.8,109.75,60.84626871]
[1744300242552,77.73486871,109.8,109.75,60.84626871]
[1744300242946,51.73486871,109.8,109.76,70.66884071]
[1744300243175,77.73486871,109.8,109.75,9.1114]
[1744300243478,51.73486871,109.79,109.75,9.1114]
[1744300243775,26.0,109.81,109.77,0.28432314]
[1744300244073,77.73486871,109.81,109.77,0.28432314]
[1744300244261,77.73486871,109.81,109.78,9.1091]
[1744300244572,51.73486871,109.82,109.78,9.1091]
[1744300244873,312.56,109.84,109.78,60.84396871]
[1744300245075,321.6644,109.84,109.77,9.1095]
[1744300245270,51.73486871,109.79,109.77,9.1095]
[1744300245581,312.56,109.84,109.78,70.66884071]
[1744300245762,312.56,109.84,109.8,51.73486871]
[1744300246081,364.29486871,109.84,109.8,51.73486871]
[1744300246279,312.56,109.84,109.79,28.041872]
[1744300246876,312.56,109.84,109.81,18.933972]
[1744300247254,312.56,109.84,109.81,70.66884071]
[1744300247472,312.56,109.84,109.81,18.933972]
[1744300247649,312.56,109.84,109.82,18.64964886]
[1744300247847,51.73486871,109.86,109.82,18.64964886]
[1744300248048,9.1001,109.89,109.81,52.01919185]
[1744300248049,51.73486871,109.85,109.81,52.01919185]
[1744300248283,51.73486871,109.85,109.82,9.1058]
[1744300248461,9.1008,109.88,109.82,9.1058]
[1744300248674,51.73486871,109.85,109.82,9.1058]
[1744300248855,51.73486871,109.85,109.77,18.64964886]
[1744300248856,51.73486871,109.83,109.77,18.64964886]
[1744300249054,51.73486871,109.81,109.77,50.53434886]
[1744300249250,51.73486871,109.85,109.78,0.28432314]
[1744300249780,51.73486871,109.81,109.77,102.26921757]
[1744300249981,51.73486871,109.81,109.77,27.75954886]
[1744300250180,51.73486871,109.85,109.77,102.26921757]
[1744300250475,77.73486871,109.86,109.8,18.933972]
[1744300250669,51.73486871,109.87,109.83,18.933972]
[1744300250863,60.86436871,109.9,109.83,70.66884071]
[1744300251176,51.73486871,109.87,109.83,18.933972]
[1744300251391,51.73486871,109.86,109.83,0.28432314]
[1744300251680,51.73486871,109.85,109.83,0.28432314]
[1744300251875,26.0,109.87,109.81,18.64964886]
[1744300252175,35.1021,109.87,109.8,27.75634886]
[1744300252480,51.73486871,109.84,109.8,79.49121757]
[1744300252782,26.0,109.87,109.8,79.49121757]
[1744300253077,51.73486871,109.84,109.8,27.75634886]
[1744300253278,51.73486871,109.81,109.75,9.1116]
[1744300253456,51.73486871,109.76,109.72,0.063]
[1744300253774,51.73486871,109.8,109.72,9.177]
[1744300253974,51.73486871,109.8,109.72,8.677]
[1744300254275,51.73486871,109.85,109.77,27.75954886]
[1744300254573,51.73486871,109.85,109.78,0.28432314]
[1744300254776,51.73486871,109.82,109.79,18.64964886]
[1744300255079,9.1012,109.88,109.8,0.28432314]
[1744300255262,51.73486871,109.85,109.81,18.64964886]
[1744300255457,51.73486871,109.83,109.8,0.28432314]
[1744300255659,51.73486871,109.82,109.79,7.7918]
[1744300255859,51.73486871,109.85,109.79,7.7918]
[1744300256056,51.73486871,109.83,109.79,7.7918]
[1744300256257,51.73486871,109.81,109.78,18.933972]
[1744300256591,51.73486871,109.82,109.78,18.933972]
[1744300256876,51.73486871,109.82,109.78,27.75824886]
[1744300257086,51.73486871,109.81,109.78,9.1086]
[1744300257472,51.73486871,109.8,109.76,9.1107]
[1744300257685,51.73486871,109.79,109.76,9.1107]
[1744300257868,51.73486871,109.8,109.76,9.1107]
[1744300258560,51.73486871,109.79,109.76,9.1107]
[1744300258869,51.73486871,109.8,109.76,9.1107]
[1744300259079,26.0,109.82,109.77,70.66884071]
[1744300259386,51.73486871,109.83,109.79,18.933972]
[1744300259560,51.73486871,109.83,109.79,18.79181043]
[1744300259761,364.33486871,109.85,109.8,0.14216157]
[1744300259961,312.6,109.85,109.79,0.14216157]
[1744300260162,51.73486871,109.81,109.77,18.64964886]
[1744300260458,51.73486871,109.78,109.72,9.1141]
[1744300260660,51.73486871,109.73,109.7,84.95831109]
[1744300260866,51.73486871,109.75,109.68,9.1174]
[1744300260867,51.73486871,109.71,109.68,9.1174]
[1744300261077,51.73486871,109.75,109.68,83.64576871]
[1744300261590,51.73486871,109.72,109.69,18.933972]
[1744300261791,51.73486871,109.72,109.68,9.1174]
[1744300261975,51.73486871,109.7,109.68,9.1174]
[1744300262172,51.73486871,109.75,109.68,9.1174]
[1744300262375,312.58,109.76,109.7,9.1157]
[1744300262682,312.58,109.76,109.71,18.64964886]
[1744300262990,51.73486871,109.74,109.72,0.28432314]
[1744300263169,312.58,109.76,109.71,0.14216157]
[1744300263370,51.73486871,109.73,109.69,27.76574886]
[1744300263581,51.73486871,109.71,109.68,18.64964886]
[1744300263781,51.73486871,109.73,109.69,0.28432314]
[1744300264108,51.73486871,109.75,109.71,0.28432314]
[1744300264259,51.73486871,109.73,109.71,0.28432314]
[1744300264465,51.73486871,109.72,109.7,18.64964886]
[1744300264800,51.73486871,109.72,109.69,18.79181043]
[1744300265370,60.84656871,109.75,109.69,18.79181043]
[1744300265597,312.58,109.76,109.7,0.28432314]
[1744300265793,51.73486871,109.75,109.71,18.64964886]
[1744300266109,51.73486871,109.72,109.7,0.28432314]
[1744300266390,312.58,109.76,109.71,9.1149]
[1744300266607,51.73486871,109.72,109.67,6.6577]
[1744300266770,51.73486871,109.7,109.68,18.79181043]
[1744300266967,51.73486871,109.75,109.67,6.6577]
[1744300267181,51.73486871,109.7,109.67,6.6577]
[1744300267374,18.933972,109.75,109.67,0.063]
[1744300267668,51.73486871,109.68,109.67,0.063]
[1744300268273,26.0,109.72,109.67,0.063]
[1744300268509,51.73486871,109.68,109.67,0.063]
[1744300269393,9.1149,109.71,109.67,0.063]
[1744300269566,51.73486871,109.68,109.67,0.063]
[1744300270191,9.1149,109.71,109.67,0.063]
[1744300270494,51.73486871,109.68,109.67,0.063]
[1744300270669,112.58713742,109.68,109.67,0.063]
[1744300270867,112.58713742,109.68,109.66,0.063]
[1744300271190,364.55486871,109.67,109.6,51.73486871]
[1744300271364,51.73486871,109.66,109.6,70.38451757]
[1744300271566,51.73486871,109.64,109.59,18.64964886]
[1744300271786,51.73486871,109.64,109.6,51.73486871]
[1744300271982,51.73486871,109.64,109.59,70.38451757]
[1744300272286,312.82,109.67,109.6,0.28432314]
[1744300272486,51.73486871,109.64,109.6,51.73486871]
[1744300272688,51.73486871,109.63,109.58,51.73486871]
[1744300272891,51.73486871,109.65,109.58,9.1255]
[1744300272892,51.73486871,109.62,109.58,9.1255]
[1744300273070,51.73486871,109.61,109.58,9.1255]
[1744300273270,51.73486871,109.65,109.58,9.1255]
[1744300273485,51.73486871,109.62,109.58,9.1255]
[1744300273994,26.0,109.62,109.57,132.99786871]
[1744300274286,51.73486871,109.6,109.57,0.063]
[1744300274494,51.73486871,109.59,109.57,0.063]
[1744300274685,51.73486871,109.58,109.57,0.063]
[1744300275097,9.1232,109.61,109.57,0.063]
[1744300275293,77.73486871,109.58,109.57,0.063]
[1744300275796,442.48973742,109.58,109.5,0.03]
[1744300275991,51.73486871,109.51,109.5,0.03]
[1744300276305,51.73486871,109.55,109.5,0.03]
[1744300276467,51.73486871,109.51,109.5,0.03]
[1744300277291,103.46973742,109.51,109.5,0.03]
[1744300277791,26.0,109.48,109.4,69.71336327]
[1744300277992,51.73486871,109.44,109.4,69.71336327]
[1744300278290,51.73486871,109.42,109.4,69.71336327]
[1744300278511,51.73486871,109.41,109.4,69.71336327]
[1744300278680,9.1382,109.43,109.4,69.71336327]
[1744300279002,51.73486871,109.41,109.4,69.71336327]
[1744300279292,129.46973742,109.41,109.4,69.71336327]
[1744300279765,77.73486871,109.41,109.4,69.71336327]
[1744300279969,9.1365,109.45,109.4,69.71336327]
[1744300280190,83.71276871,109.45,109.4,69.71336327]
[1744300280698,83.71276871,109.45,109.39,0.03]
[1744300280699,31.9779,109.45,109.39,0.03]
[1744300280877,26.0,109.42,109.39,0.03]
[1744300281084,77.73486871,109.42,109.39,0.03]
[1744300281278,31.9779,109.45,109.39,0.03]
[1744300281579,51.73486871,109.41,109.39,0.03]
[1744300281901,51.73486871,109.4,109.39,0.03]
[1744300282198,26.0,109.42,109.39,0.03]
[1744300282410,9.1349,109.47,109.4,0.28432314]
[1744300282593,51.73486871,109.46,109.41,51.73486871]
[1744300282767,51.73486871,109.42,109.39,0.03]
[1744300283082,51.73486871,109.45,109.39,0.03]
[1744300283395,51.73486871,109.42,109.39,0.03]
[1744300283697,65.00978258,109.43,109.39,0.03]
[1744300283878,13.27491387,109.43,109.42,0.14216157]
[1744300284080,13.27491387,109.43,109.42,51.87703028]
[1744300284285,53.0996555,109.45,109.42,51.87703028]
[1744300284591,53.0996555,109.45,109.42,60.87376871]
[1744300284772,53.0996555,109.45,109.43,51.73486871]
[1744300285088,53.0996555,109.45,109.44,51.73486871]
[1744300285269,51.73486871,109.5,109.44,51.73486871]
[1744300285470,483.0714796,109.51,109.45,51.73486871]
[1744300285670,51.73486871,109.5,109.45,51.73486871]
[1744300285870,51.73486871,109.46,109.39,78.57500993]
[1744300286093,51.73486871,109.43,109.37,6.3546]
[1744300286286,51.73486871,109.41,109.38,18.64964886]
[1744300286485,51.73486871,109.41,109.37,15.4977]
[1744300286668,51.73486871,109.42,109.37,58.08946871]
[1744300286867,26.0,109.46,109.42,0.28432314]
[1744300287093,51.73486871,109.44,109.37,94.07280993]
[1744300287268,77.73486871,109.45,109.38,51.73486871]
[1744300287472,51.73486871,109.42,109.37,145.80767864]
[1744300287689,51.73486871,109.42,109.37,87.71820993]
[1744300287872,51.73486871,109.44,109.4,0.14216157]
[1744300288075,77.73486871,109.45,109.38,51.73486871]
[1744300288282,86.87216871,109.45,109.38,0.14216157]
[1744300288482,51.73486871,109.42,109.38,51.87703028]
[1744300288699,104.07243028,109.5,109.38,51.87703028]
[1744300288700,58.26666871,109.5,109.4,18.79181043]
[1744300288868,51.73486871,109.45,109.4,51.87703028]
[1744300289186,26.0,109.46,109.4,0.14216157]
[1744300289581,26.0,109.46,109.42,0.14216157]
[1744300289582,51.73486871,109.46,109.42,0.14216157]
[1744300289781,51.73486871,109.46,109.41,0.14216157]
[1744300289986,51.73486871,109.44,109.4,6.6308]
[1744300290178,51.73486871,109.43,109.4,6.6308]
[1744300290378,51.73486871,109.45,109.4,15.7712]
[1744300290592,51.73486871,109.44,109.4,15.7712]
[1744300290876,51.73486871,109.44,109.4,67.50606871]
[1744300291208,9.134,109.49,109.4,57.27274886]
[1744300291497,51.73486871,109.48,109.43,51.73486871]
[1744300291692,51.73486871,109.47,109.43,51.73486871]
[1744300291899,51.73486871,109.5,109.43,51.73486871]
[1744300292100,51.73486871,109.48,109.43,51.73486871]
[1744300292295,51.73486871,109.47,109.43,60.87236871]
[1744300292476,51.73486871,109.49,109.45,51.73486871]
[1744300292674,51.73486871,109.49,109.44,0.28432314]
[1744300292898,51.73486871,109.49,109.44,52.01919185]
[1744300293094,51.73486871,109.5,109.46,0.28432314]
[1744300293298,313.38,109.51,109.46,0.28432314]
[1744300293473,365.11486871,109.51,109.46,52.01919185]
[1744300293678,51.73486871,109.47,109.43,87.71250993]
[1744300293879,51.73486871,109.46,109.41,83.72456871]
[1744300294691,51.73486871,109.46,109.42,0.14216157]
[1744300294998,51.73486871,109.44,109.4,17.2892]
[1744300295204,51.73486871,109.45,109.39,18.64964886]
[1744300295388,51.73486871,109.45,109.4,51.73486871]
[1744300295591,9.1325,109.5,109.43,51.73486871]
[1744300295784,9.1325,109.5,109.44,0.28432314]
[1744300296106,51.73486871,109.48,109.44,0.28432314]
[1744300296291,9.1325,109.5,109.42,74.58226871]
[1744300296292,51.73486871,109.47,109.42,74.58226871]
[1744300296499,51.73486871,109.47,109.41,97.22465879]
[1744300296500,9.1325,109.5,109.43,61.15699185]
[1744300296792,51.73486871,109.47,109.43,9.42212314]
[1744300297584,51.73486871,109.47,109.43,9.1378]
[1744300297778,51.73486871,109.45,109.41,51.73486871]
[1744300297978,51.73486871,109.45,109.4,9.1407]
[1744300298199,51.73486871,109.45,109.4,83.72746871]
[1744300298402,9.1335,109.49,109.41,18.64964886]
[1744300298592,313.38,109.51,109.44,51.73486871]
[1744300298795,0.063,109.56,109.46,0.28432314]
[1744300299112,0.063,109.56,109.48,0.28432314]
[1744300299113,51.73486871,109.53,109.48,0.28432314]
[1744300299287,51.73486871,109.54,109.5,51.73486871]
[1744300299485,51.73486871,109.54,109.48,0.28432314]
[1744300299697,51.73486871,109.54,109.5,0.28432314]
[1744300300082,51.73486871,109.54,109.49,60.86806871]
[1744300300286,51.73486871,109.54,109.5,51.73486871]
[1744300300504,51.73486871,109.53,109.49,9.1332]
[1744300300704,51.73486871,109.52,109.48,61.15289185]
[1744300300879,51.73486871,109.49,109.46,78.57500993]
[1744300301084,51.73486871,109.48,109.44,10.7844]
[1744300301487,51.73486871,109.5,109.45,0.28432314]
[1744300301693,51.73486871,109.49,109.45,9.42012314]
[1744300301890,51.73486871,109.49,109.45,61.15499185]
[1744300302209,51.73486871,109.48,109.44,62.51936871]
[1744300302612,51.73486871,109.48,109.44,10.7845]
[1744300302904,51.73486871,109.47,109.43,60.87276871]
[1744300303096,51.73486871,109.48,109.43,60.87276871]
[1744300303691,9.1324,109.5,109.45,9.1365]
[1744300303890,51.73486871,109.49,109.45,9.1365]
[1744300304102,51.73486871,109.48,109.44,60.87196871]
[1744300304407,51.73486871,109.47,109.44,9.1371]
[1744300304907,51.73486871,109.48,109.44,9.1371]
[1744300305109,322.7717,109.51,109.45,52.01919185]
[1744300305308,313.64,109.51,109.45,52.01919185]
[1744300305512,313.64,109.51,109.46,51.73486871]
[1744300305712,313.64,109.51,109.47,60.86916871]
[1744300306023,313.64,109.51,109.46,60.87056871]
[1744300306206,313.64,109.51,109.48,51.73486871]
[1744300306421,313.64,109.51,109.49,51.73486871]
[1744300306710,0.063,109.56,109.51,0.28432314]
[1744300306887,0.063,109.56,109.52,51.73486871]
[1744300307092,0.063,109.56,109.53,51.73486871]
[1744300307500,51.79786871,109.56,109.49,86.73400993]
[1744300307694,51.79786871,109.56,109.51,51.73486871]
[1744300307695,51.73486871,109.55,109.51,51.73486871]
[1744300307905,51.73486871,109.55,109.5,16.7227531]
[1744300308104,51.73486871,109.53,109.49,86.73400993]
[1744300308409,9.1908,109.56,109.5,51.73486871]
[1744300308621,51.73486871,109.54,109.5,51.73486871]
[1744300308790,51.73486871,109.53,109.46,78.57500993]
[1744300308995,32.0093,109.56,109.49,51.73486871]
[1744300309313,60.92566871,109.56,109.47,27.78454886]
[1744300309609,51.73486871,109.55,109.5,51.73486871]
[1744300309812,9.1908,109.56,109.51,51.73486871]
[1744300310010,51.73486871,109.55,109.51,51.73486871]
[1744300310217,9.1908,109.56,109.49,97.50898193]
[1744300310218,51.73486871,109.54,109.49,97.50898193]
[1744300310416,51.73486871,109.55,109.5,51.73486871]
[1744300310709,0.063,109.56,109.5,9.1324]
[1744300310909,0.063,109.56,109.52,51.73486871]
[1744300311123,51.79786871,109.56,109.52,51.73486871]
[1744300311605,51.73486871,109.55,109.5,139.44227864]
[1744300311804,0.063,109.56,109.5,139.44227864]
[1744300311992,51.73486871,109.54,109.5,139.44227864]
[1744300312194,0.063,109.56,109.51,52.01919185]
[1744300312389,0.063,109.56,109.52,51.73486871]
[1744300312616,0.063,109.56,109.53,51.73486871]
[1744300312802,0.063,109.56,109.55,9.1282]
[1744300312999,0.063,109.56,109.54,60.86356871]
[1744300313407,0.063,109.56,109.55,51.73486871]
[1744300313607,0.063,109.56,109.55,52.01919185]
[1744300313793,0.063,109.56,109.55,51.73486871]
[1744300314217,0.063,109.56,109.55,70.66884071]
[1744300314815,0.063,109.62,109.57,0.28432314]
[1744300315016,0.063,109.62,109.58,51.73486871]
[1744300315217,51.73486871,109.61,109.55,110.52380993]
[1744300315516,51.79786871,109.61,109.57,51.73486871]
[1744300315815,51.73486871,109.6,109.56,51.73486871]
[1744300316018,51.79786871,109.61,109.56,51.73486871]
[1744300316310,0.063,109.61,109.59,51.73486871]
[1744300316517,0.063,109.61,109.58,51.73486871]
[1744300316894,0.063,109.61,109.58,60.86006871]
[1744300317095,51.73486871,109.63,109.58,60.86006871]
[1744300317290,9.1207,109.64,109.58,9.1252]
[1744300317496,9.1207,109.64,109.59,51.73486871]
[1744300317720,51.73486871,109.63,109.58,9.1252]
[1744300317925,9.1207,109.64,109.59,51.73486871]
[1744300318296,51.73486871,109.63,109.59,51.73486871]
[1744300318498,51.73486871,109.62,109.57,9.1265]
[1744300318698,9.1207,109.64,109.59,51.73486871]
[1744300319001,322.6401,109.65,109.58,0.28432314]
[1744300319195,313.52,109.65,109.61,51.73486871]
[1744300319404,313.52,109.65,109.58,97.50898193]
[1744300319607,313.52,109.65,109.62,51.73486871]
[1744300320098,51.73486871,109.67,109.62,84.95640993]
[1744300320302,51.73486871,109.7,109.63,0.28432314]
[1744300320513,9.1157,109.71,109.65,51.73486871]
[1744300321036,313.38,109.73,109.69,51.73486871]
[1744300321226,313.38,109.73,109.71,51.73486871]
[1744300321413,313.38,109.73,109.67,18.933972]
[1744300321613,313.38,109.73,109.71,51.73486871]
[1744300321918,313.38,109.73,109.7,51.73486871]
[1744300322103,313.38,109.73,109.71,52.01919185]
[1744300322307,9.1095,109.78,109.72,51.73486871]
[1744300322502,51.73486871,109.78,109.73,60.84756871]
[1744300322705,51.73486871,109.8,109.75,51.73486871]
[1744300322909,322.4058,109.82,109.77,51.73486871]
[1744300323116,313.3,109.82,109.75,52.01919185]
[1744300323313,51.73486871,109.81,109.75,0.28432314]
[1744300323534,313.3,109.82,109.77,52.01919185]
[1744300323820,313.3,109.82,109.74,51.73486871]
[1744300324025,51.73486871,109.8,109.74,0.28432314]
[1744300324217,313.3,109.82,109.75,51.73486871]
[1744300324406,51.73486871,109.8,109.76,51.73486871]
[1744300324601,51.73486871,109.77,109.71,78.57500993]
[1744300324802,51.73486871,109.76,109.71,130.30987864]
[1744300325228,51.73486871,109.76,109.71,78.57500993]
[1744300325413,26.0,109.77,109.72,51.73486871]
[1744300325613,9.1076,109.8,109.74,51.73486871]
[1744300325819,336.0647,109.82,109.73,0.28432314]
[1744300326011,51.73486871,109.79,109.74,51.73486871]
[1744300326321,51.73486871,109.8,109.73,0.28432314]
[1744300326522,51.73486871,109.78,109.73,0.28432314]
[1744300326827,9.1082,109.79,109.73,51.73486871]
[1744300327127,51.73486871,109.78,109.73,51.73486871]
[1744300327336,9.1082,109.79,109.73,51.73486871]
[1744300327503,9.1082,109.79,109.72,18.933972]
[1744300327832,9.1077,109.8,109.75,51.73486871]
[1744300328325,9.1077,109.8,109.74,0.28432314]
[1744300328505,51.73486871,109.75,109.7,6.5763]
[1744300328698,9.1103,109.77,109.72,51.73486871]
[1744300328900,51.73486871,109.76,109.71,18.933972]
[1744300329104,9.1103,109.77,109.71,0.14216157]
[1744300329105,51.73486871,109.75,109.71,0.14216157]
[1744300329424,35.1103,109.77,109.71,0.14216157]
[1744300329610,26.0,109.77,109.71,18.79181043]
[1744300329810,9.1085,109.79,109.74,70.66884071]
[1744300330126,51.73486871,109.76,109.74,0.28432314]
[1744300330331,51.73486871,109.75,109.71,78.57500993]
[1744300330503,51.73486871,109.74,109.71,0.14216157]
[1744300330832,9.1099,109.77,109.71,18.79181043]
[1744300331010,9.1082,109.79,109.74,52.01919185]
[1744300331213,60.84306871,109.79,109.74,0.28432314]
[1744300331524,373.90246871,109.8,109.76,0.28432314]
[1744300331714,51.73486871,109.79,109.76,0.28432314]
[1744300331923,313.06,109.8,109.76,52.01919185]
[1744300332111,51.73486871,109.78,109.72,18.64964886]
[1744300332314,51.73486871,109.77,109.73,0.28432314]
[1744300332519,396.67106871,109.8,109.73,0.28432314]
[1744300332734,322.1676,109.8,109.74,51.73486871]
[1744300332911,322.1676,109.8,109.73,9.39722314]
[1744300332912,322.1676,109.8,109.75,51.73486871]
[1744300333107,322.1676,109.8,109.73,9.39722314]
[1744300333312,51.73486871,109.78,109.74,0.28432314]
[1744300333527,322.1676,109.8,109.74,0.28432314]
[1744300333715,51.73486871,109.76,109.72,27.76344886]
[1744300333911,51.73486871,109.76,109.73,0.28432314]
[1744300334221,51.73486871,109.76,109.71,139.42447864]
[1744300334423,77.73486871,109.75,109.66,154.56412616]
[1744300334629,51.73486871,109.67,109.66,78.57500993]
[1744300334925,51.73486871,109.67,109.64,1.6518]
[1744300335129,51.73486871,109.66,109.62,6.5699]
[1744300335304,51.73486871,109.65,109.62,6.5699]
[1744300335504,51.73486871,109.67,109.62,15.6922]
[1744300335739,51.73486871,109.67,109.62,67.42706871]
[1744300335915,51.73486871,109.67,109.62,15.6922]
[1744300336124,29.1225,109.72,109.65,52.01919185]
[1744300336125,312.9,109.72,109.65,52.01919185]
[1744300336422,51.73486871,109.69,109.66,0.14216157]
[1744300336625,51.73486871,109.7,109.66,0.14216157]
[1744300336812,322.0141,109.72,109.66,0.14216157]
[1744300337012,51.73486871,109.67,109.64,0.14216157]
[1744300337243,51.73486871,109.66,109.62,94.26720993]
[1744300337831,51.73486871,109.68,109.65,0.28432314]
[1744300338565,51.73486871,109.68,109.65,18.933972]
[1744300338742,103.46973742,109.66,109.59,1.6169]
[1744300338916,344.7996,109.72,109.64,51.73486871]
[1744300339233,344.7996,109.72,109.6,51.73486871]
[1744300339234,51.73486871,109.66,109.61,0.14216157]
[1744300339423,51.73486871,109.65,109.61,51.87703028]
[1744300339622,51.73486871,109.65,109.61,0.14216157]
[1744300339845,26.0,109.67,109.61,0.14216157]
[1744300340041,51.73486871,109.63,109.59,1.6169]
[1744300340339,51.73486871,109.64,109.6,70.38451757]
[1744300340541,9.1166,109.69,109.62,51.73486871]
[1744300340715,51.73486871,109.64,109.61,0.28432314]
[1744300341046,51.73486871,109.64,109.61,0.14216157]
[1744300341416,51.73486871,109.65,109.61,0.14216157]
[1744300341742,26.0,109.66,109.61,0.14216157]
[1744300341743,31.9081,109.69,109.62,0.14216157]
[1744300342036,31.9081,109.69,109.62,51.87703028]
[1744300342212,9.1166,109.69,109.64,0.14216157]
[1744300342415,51.73486871,109.67,109.64,0.14216157]
[1744300342913,312.9,109.72,109.66,51.87703028]
[1744300343122,312.9,109.72,109.68,51.87703028]
[1744300343322,312.9,109.72,109.68,0.14216157]
[1744300343323,364.63486871,109.72,109.68,0.14216157]
[1744300343642,312.9,109.72,109.69,51.87703028]
[1744300343933,0.063,109.78,109.72,0.28432314]
[1744300344236,51.73486871,109.73,109.7,0.28432314]
[1744300344430,51.73486871,109.71,109.68,0.28432314]
[1744300344612,26.0,109.72,109.67,1.5747]
[1744300344812,51.73486871,109.71,109.68,0.28432314]
[1744300345018,26.0,109.75,109.67,1.5747]
[1744300345230,51.73486871,109.75,109.68,0.28432314]
[1744300345442,18.71264886,109.78,109.69,0.14216157]
[1744300345634,0.063,109.78,109.7,70.52667914]
[1744300345815,0.063,109.78,109.71,0.14216157]
[1744300346014,51.73486871,109.74,109.71,0.14216157]
[1744300346214,51.73486871,109.75,109.71,0.14216157]
[1744300346418,51.73486871,109.74,109.7,0.14216157]
[1744300346628,51.73486871,109.74,109.7,52.01919185]
[1744300346930,51.73486871,109.73,109.69,0.28432314]
[1744300347244,51.73486871,109.72,109.69,0.28432314]
[1744300347447,26.0,109.76,109.69,0.28432314]
[1744300347655,26.0,109.76,109.69,18.933972]
[1744300347955,51.73486871,109.74,109.7,51.73486871]
[1744300348115,9.1116,109.75,109.71,0.28432314]
[1744300348448,9.1116,109.75,109.68,78.57500993]
[1744300348449,51.73486871,109.73,109.68,78.57500993]
[1744300348634,51.73486871,109.72,109.69,0.28432314]
[1744300348823,83.62546871,109.75,109.68,78.57500993]
[1744300349017,0.063,109.78,109.73,51.73486871]
[1744300349329,0.063,109.78,109.75,0.28432314]
[1744300349734,0.063,109.78,109.75,52.01919185]
[1744300350040,51.79786871,109.78,109.75,0.28432314]
[1744300350220,0.063,109.78,109.75,130.59420178]
[1744300350420,0.063,109.78,109.75,78.57500993]
[1744300350745,51.73486871,109.77,109.75,78.57500993]
[1744300351076,0.063,109.78,109.75,78.57500993]
[1744300351224,51.79786871,109.78,109.75,78.57500993]
[1744300351731,51.73486871,109.76,109.7,85.20290993]
[1744300351915,51.73486871,109.71,109.67,78.57500993]
[1744300352231,51.73486871,109.68,109.66,6.1387]
[1744300352435,9.1154,109.71,109.66,6.1387]
[1744300352624,51.73486871,109.7,109.63,10.6566]
[1744300352828,51.73486871,109.68,109.63,62.39146871]
[1744300353026,9.1154,109.71,109.63,62.39146871]
[1744300353027,312.88,109.73,109.65,70.66884071]
[1744300353230,51.73486871,109.68,109.65,78.57500993]
[1744300353449,51.73486871,109.67,109.63,10.6566]
[1744300353619,51.73486871,109.67,109.64,0.28432314]
[1744300353820,51.73486871,109.7,109.63,62.39146871]
[1744300354051,26.0,109.7,109.64,51.73486871]
[1744300354346,26.0,109.7,109.63,10.6566]
[1744300354347,51.73486871,109.66,109.63,1.5355]
[1744300354927,26.0,109.7,109.65,0.28432314]
[1744300355150,51.73486871,109.7,109.65,52.01919185]
[1744300355381,51.73486871,109.7,109.67,0.28432314]
[1744300355655,51.73486871,109.69,109.64,70.66884071]
[1744300355825,312.88,109.73,109.66,52.01919185]
[1744300356026,51.73486871,109.72,109.69,0.28432314]
[1744300356224,312.88,109.73,109.69,0.28432314]
[1744300356423,51.73486871,109.71,109.67,9.1182]
[1744300356651,51.73486871,109.69,109.67,9.1182]
[1744300356856,51.73486871,109.7,109.66,52.01919185]
[1744300357155,51.73486871,109.69,109.66,9.40332314]
[1744300357527,321.9933,109.73,109.66,9.40332314]
[1744300357733,51.73486871,109.71,109.67,0.28432314]
[1744300357945,51.73486871,109.69,109.66,9.119]
[1744300358147,312.88,109.73,109.68,9.1174]
[1744300358345,51.73486871,109.69,109.66,9.1188]
[1744300358656,51.73486871,109.7,109.66,9.1188]
[1744300358857,312.88,109.73,109.67,18.933972]
[1744300359149,312.88,109.73,109.67,70.66884071]
[1744300359356,51.73486871,109.72,109.67,70.66884071]
[1744300360259,51.73486871,109.71,109.68,9.1174]
[1744300360429,321.9934,109.73,109.67,9.40222314]
[1744300360633,51.73486871,109.7,109.67,9.40222314]
[1744300360838,321.9934,109.73,109.67,9.1179]
[1744300361346,51.73486871,109.69,109.67,9.1179]
[1744300361654,51.73486871,109.68,109.66,9.119]
[1744300362146,344.7765,109.73,109.66,9.119]